bitfinex/quotes_SOLUSD_20250420
["timestamp","ask_amount","ask_price","bid_price","bid_amount"]
[1745108182468,7.09577931,140.93,140.91,0.5]
[1745108182677,1.5465,140.99,140.95,0.5]
[1745108183453,1.5465,140.99,140.96,0.5]
[1745108183672,7.0932047,140.98,140.96,0.5]
[1745108184262,7.0932047,140.98,140.94,0.5]
[1745108184561,7.0932047,140.98,140.96,0.5]
[1745108184768,7.0932047,140.98,140.93,0.5]
[1745108184967,7.0932047,140.98,140.94,0.5]
[1745108185367,24.82621647,140.98,140.92,0.5]
[1745108186381,24.82621647,140.98,140.91,0.5]
[1745108186570,24.82621647,140.98,140.92,0.5]
[1745108187257,24.82621647,140.98,140.93,0.5]
[1745108187974,24.82621647,140.98,140.92,0.5]
[1745108188277,24.82621647,140.98,140.93,0.5]
[1745108188673,24.82621647,140.98,140.92,0.5]
[1745108189188,46.10621647,140.98,140.92,0.5]
[1745108189679,46.10621647,140.98,140.89,0.070977]
[1745108189680,46.10621647,140.98,140.9,0.5]
[1745108189859,46.10621647,140.98,140.92,0.5]
[1745108190055,63.32621647,140.98,140.91,0.5]
[1745108190277,42.04621647,140.98,140.91,0.5]
[1745108190478,42.04621647,140.98,140.94,0.5]
[1745108190686,42.04621647,140.98,140.93,0.5]
[1745108191079,42.04621647,140.98,140.94,0.5]
[1745108192585,42.04621647,140.98,140.92,0.5]
[1745108192783,42.04621647,140.98,140.9,26.5]
[1745108192983,63.32621647,140.98,140.9,25.5]
[1745108193175,63.32621647,140.98,140.92,0.5]
[1745108193988,42.04621647,140.98,140.93,0.5]
[1745108194189,42.04621647,140.98,140.94,0.5]
[1745108194488,42.04621647,140.98,140.91,0.5]
[1745108195178,42.04621647,140.98,140.92,0.5]
[1745108198398,42.04621647,140.98,140.94,0.5]
[1745108198580,42.04621647,140.98,140.92,0.5]
[1745108200292,42.04621647,140.98,140.93,0.5]
[1745108200903,7.0932047,140.98,140.95,0.5]
[1745108201982,7.0932047,140.98,140.94,0.5]
[1745108202284,7.0932047,140.98,140.95,0.5]
[1745108204097,7.0932047,140.98,140.96,0.5]
[1745108206589,7.09286529,140.99,140.97,0.5]
[1745108206797,7.09286529,140.99,140.96,0.5]
[1745108206996,7.09286529,140.99,140.97,0.5]
[1745108207185,0.03,141.0,140.97,0.5]
[1745108207583,0.03,141.0,140.96,0.5]
[1745108207801,0.03,141.0,140.97,0.5]
[1745108208096,0.03,141.0,140.94,0.5]
[1745108208297,39.95964886,141.0,140.92,0.5]
[1745108208502,39.95964886,141.0,140.93,0.570957]
[1745108209197,24.82445563,140.99,140.93,0.570957]
[1745108209683,7.09270161,140.99,140.94,0.5]
[1745108209993,7.09270161,140.99,140.95,0.5]
[1745108210390,24.82445563,140.99,140.94,0.5]
[1745108210805,24.82445563,140.99,140.95,0.5]
[1745108211707,0.03,141.0,140.95,0.5]
[1745108212203,0.03,141.0,140.96,0.5]
[1745108212498,0.03,141.0,140.95,0.5]
[1745108212703,0.03,141.0,140.93,0.570957]
[1745108212997,21.28,140.99,140.93,0.570957]
[1745108213198,21.28,140.99,140.93,0.070957]
[1745108213702,21.28,140.99,140.93,0.570957]
[1745108214206,24.82621647,140.98,140.93,0.570957]
[1745108214385,24.82621647,140.98,140.93,0.070957]
[1745108216502,24.82621647,140.98,140.93,0.570957]
[1745108216687,24.82621647,140.98,140.93,0.070957]
[1745108217091,7.0932047,140.98,140.94,0.5]
[1745108217994,7.0932047,140.98,140.95,0.5]
[1745108218703,24.85283863,141.0,140.94,0.5]
[1745108218917,24.85283863,141.0,140.95,0.5]
[1745108219205,24.85283863,141.0,140.94,0.5]
[1745108219407,24.85283863,141.0,140.95,0.5]
[1745108220110,24.85283863,141.0,140.94,0.5]
[1745108220286,39.92964886,140.99,140.93,0.070957]
[1745108220606,39.92964886,140.99,140.93,0.570957]
[1745108220910,7.0932047,140.98,140.93,0.570957]
[1745108221089,7.0932047,140.98,140.93,0.070957]
[1745108221290,24.82621647,140.98,140.93,0.570957]
[1745108221490,24.82621647,140.98,140.94,0.5]
[1745108222009,24.82621647,140.98,140.93,0.570957]
[1745108222203,24.82621647,140.98,140.94,0.5]
[1745108222807,21.28,140.98,140.94,0.5]
[1745108223108,24.85269503,141.0,140.94,0.5]
[1745108226010,0.03,141.0,140.98,26.0]
[1745108226189,0.03,141.04,141.03,0.5]
[1745108226390,8.73325492,141.1,141.08,0.5]
[1745108226601,10.9920052,141.13,141.12,0.5]
[1745108228301,0.15,141.15,141.14,0.5]
[1745108230299,0.15,141.15,141.14,4.04258183]
[1745108231016,0.15,141.15,141.14,0.5]
[1745108233596,0.15,141.15,141.12,0.5]
[1745108233797,7.2346617,141.15,141.12,0.5]
[1745108235997,7.2346617,141.15,141.11,0.5]
[1745108236311,7.2346617,141.15,141.1,0.5]
[1745108236518,7.2346617,141.15,141.11,0.5]
[1745108236718,7.2346617,141.15,141.12,0.5]
[1745108237099,7.2346617,141.15,141.11,0.5]
[1745108237920,7.2346617,141.15,141.1,0.5]
[1745108238112,7.2346617,141.15,141.12,0.5]
[1745108238513,7.2346617,141.15,141.11,0.5]
[1745108238719,46.22631596,141.15,141.08,0.5]
[1745108240520,24.94631596,141.15,141.1,0.5]
[1745108240822,24.94631596,141.15,141.09,0.5]
[1745108241433,24.94631596,141.15,141.1,0.5]
[1745108242024,24.94631596,141.15,141.11,0.5]
[1745108242902,7.2346617,141.15,141.11,0.5]
[1745108243103,0.15,141.15,141.14,0.5]
[1745108243315,7.2346617,141.15,141.14,0.5]
[1745108244922,7.2346617,141.15,141.12,0.5]
[1745108245120,7.2346617,141.15,141.14,0.5]
[1745108246923,7.2346617,141.15,141.11,0.5]
[1745108247324,24.94631596,141.15,141.11,0.5]
[1745108247525,24.94631596,141.15,141.12,0.5]
[1745108247726,24.94631596,141.15,141.11,0.5]
[1745108248128,24.94631596,141.15,141.12,0.5]
[1745108249821,24.94631596,141.15,141.1,0.5]
[1745108250121,24.94631596,141.15,141.09,0.5]
[1745108250731,24.94631596,141.15,141.11,0.5]
[1745108251037,24.94631596,141.15,141.09,0.5]
[1745108251226,46.22631596,141.15,141.08,0.5]
[1745108251532,46.07982993,141.13,141.06,0.5]
[1745108251718,24.79982993,141.13,141.08,0.5]
[1745108251919,21.28,141.12,141.07,0.5]
[1745108252637,21.28,141.12,141.08,0.5]
[1745108252841,21.28,141.12,141.06,0.5]
[1745108253022,21.28,141.12,141.07,0.5]
[1745108253446,24.8033449,141.11,141.07,0.5]
[1745108253649,24.8033449,141.11,141.08,0.5]
[1745108253832,24.8033449,141.11,141.07,0.5]
[1745108254138,24.8033449,141.11,141.08,0.5]
[1745108254635,24.8033449,141.11,141.07,0.5]
[1745108256140,100.15354001,141.14,141.07,0.5]
[1745108256826,39.92964886,141.12,141.02,0.5]
[1745108257027,90.1724,141.13,141.01,0.5]
[1745108257028,39.92964886,141.09,141.01,0.5]
[1745108257227,39.92964886,141.09,141.04,0.5]
[1745108258341,24.80861922,141.08,141.04,0.5]
[1745108261127,24.80861922,141.08,141.03,0.5]
[1745108261318,24.80861922,141.08,141.04,0.5]
[1745108261523,24.80861922,141.08,141.03,0.5]
[1745108261725,24.80861922,141.08,141.02,0.5]
[1745108262542,24.80861922,141.08,141.01,0.5]
[1745108262845,81.52950382,141.08,141.03,0.5]
[1745108263153,39.92964886,141.07,141.01,0.5]
[1745108264048,24.81213667,141.06,141.01,0.5]
[1745108264455,24.81213667,141.06,141.02,0.5]
[1745108264626,24.81213667,141.06,141.01,0.5]
[1745108264957,24.81213667,141.06,141.0,0.5]
[1745108266038,81.53804621,141.06,141.0,0.5]
[1745108266435,97.59804621,141.06,141.0,0.5]
[1745108266626,1.6581,141.05,141.0,0.5]
[1745108266827,1.6581,141.05,140.98,0.563]
[1745108267029,6.1364,141.04,140.98,0.563]
[1745108267232,39.92964886,141.03,140.98,0.063]
[1745108268147,39.92964886,141.01,140.98,0.063]
[1745108268442,55.48964886,141.01,140.98,1e-08]
[1745108268633,1.6581,141.0,140.95,0.063]
[1745108268836,39.92964886,140.97,140.95,0.063]
[1745108269444,46.06604886,140.96,140.95,1e-08]
[1745108270247,47.02436329,140.95,140.93,1e-08]
[1745108272328,73.02436329,140.95,140.93,1e-08]
[1745108274652,90.76114938,140.95,140.89,0.063]
[1745108275750,64.76114938,140.95,140.89,0.063]
[1745108275932,46.11150052,140.95,140.9,0.5]
[1745108276854,39.92964886,140.94,140.89,0.063]
[1745108277634,21.28,140.91,140.89,0.063]
[1745108278050,39.92964886,140.9,140.89,0.063]
[1745108278256,24.84207537,140.89,140.86,0.063]
[1745108278865,41.44974886,140.86,140.83,0.063]
[1745108279042,39.92964886,140.84,140.83,0.063]
[1745108279860,65.92964886,140.84,140.8,1e-08]
[1745108280062,65.92964886,140.84,140.77,1e-08]
[1745108280063,39.92964886,140.82,140.77,1e-08]
[1745108280558,39.92964886,140.78,140.77,1e-08]
[1745108280733,55.50964886,140.78,140.71,0.063]
[1745108282264,81.50964886,140.78,140.71,0.063]
[1745108282470,39.92964886,140.76,140.71,0.063]
[1745108284348,24.86678507,140.75,140.71,0.063]
[1745108284550,46.14678507,140.75,140.71,0.063]
[1745108284963,7.10479573,140.75,140.73,0.5]
[1745108285162,7.10378631,140.77,140.73,0.5]
[1745108285352,7.10378631,140.77,140.74,0.5]
[1745108285654,18.64964886,140.8,140.74,0.5]
[1745108285958,18.64964886,140.8,140.76,0.5]
[1745108285959,7.10227272,140.8,140.76,0.5]
[1745108286160,7.10227272,140.8,140.71,26.063]
[1745108286161,7.10227272,140.8,140.77,0.5]
[1745108286658,7.10227272,140.8,140.75,0.5]
[1745108286968,18.64964886,140.79,140.74,0.5]
[1745108288453,7.10328171,140.78,140.74,0.5]
[1745108290676,7.10328171,140.78,140.73,0.5]
[1745108291147,18.64964886,140.77,140.73,0.5]
[1745108291547,39.92964886,140.75,140.71,0.063]
[1745108291853,18.64964886,140.73,140.71,0.063]
[1745108292459,39.92964886,140.73,140.71,1e-08]
[1745108292661,7.1063104,140.72,140.71,1e-08]
[1745108293045,47.03595926,140.72,140.71,1e-08]
[1745108293267,25.75595926,140.72,140.71,1e-08]
[1745108293575,7.1063104,140.72,140.71,1e-08]
[1745108294781,7.10580544,140.73,140.71,1e-08]
[1745108295965,18.64964886,140.72,140.71,1e-08]
[1745108296648,39.92964886,140.72,140.71,1e-08]
[1745108296853,47.03595926,140.72,140.71,1e-08]
[1745108300977,25.75595926,140.72,140.71,1e-08]
[1745108301573,7.1063104,140.72,140.71,1e-08]
[1745108305779,7.10479573,140.75,140.71,1e-08]
[1745108305973,7.10479573,140.75,140.72,0.5]
[1745108306483,7.10479573,140.75,140.74,0.5]
[1745108306777,7.10479573,140.75,140.73,0.5]
[1745108306979,7.10479573,140.75,140.74,0.5]
[1745108307175,7.10378631,140.77,140.74,0.5]
[1745108307480,7.13338971,140.78,140.77,0.5]
[1745108307787,0.03,140.78,140.77,0.5]
[1745108307967,0.03,140.78,140.76,0.5]
[1745108308281,0.03,140.78,140.77,0.5]
[1745108310589,0.03,140.78,140.76,0.5]
[1745108310791,0.03,140.78,140.77,0.5]
[1745108319774,0.03,140.78,140.76,0.5]
[1745108319981,0.03,140.78,140.75,0.5]
[1745108320201,0.03,140.78,140.76,0.5]
[1745108320402,0.03,140.78,140.75,0.5]
[1745108320782,18.67964886,140.78,140.73,0.5]
[1745108320983,18.64964886,140.76,140.71,0.50000001]
[1745108321299,18.64964886,140.76,140.72,0.5]
[1745108321499,39.92964886,140.76,140.71,1e-08]
[1745108322706,39.92964886,140.76,140.71,0.50000001]
[1745108322909,7.10479573,140.75,140.71,0.50000001]
[1745108323273,7.10479573,140.75,140.74,0.5]
[1745108324999,7.10429099,140.76,140.74,0.5]
[1745108325190,7.10429099,140.76,140.75,0.5]
[1745108325911,0.03,140.78,140.77,0.5]
[1745108326278,7.13328171,140.78,140.77,0.5]
[1745108326887,0.03,140.78,140.77,0.5]
[1745108327704,0.03,140.78,140.76,0.5]
[1745108327879,0.03,140.78,140.77,0.5]
[1745108341816,0.03,140.78,140.77,4.76227179]
[1745108342691,0.03,140.78,140.77,7.33123091]
[1745108343225,0.03,140.78,140.77,33.33123091]
[1745108343413,0.03,140.78,140.77,87.63123091]
[1745108344327,0.03,140.84,140.83,0.5]
[1745108347206,0.03,140.84,140.83,4.76045586]
[1745108348708,0.03,140.84,140.83,0.5]
[1745108354206,1.5997,140.84,140.82,0.5]
[1745108355229,7.10075978,140.83,140.81,0.5]
[1745108355815,18.64964886,140.81,140.72,80.3]
[1745108356122,18.64964886,140.81,140.71,1e-08]
[1745108356330,18.64964886,140.79,140.71,26.00000001]
[1745108356504,18.64964886,140.81,140.71,26.00000001]
[1745108356709,18.64964886,140.81,140.72,2.57310869]
[1745108357311,18.64964886,140.79,140.72,2.57310869]
[1745108357726,7.10227272,140.8,140.73,26.0]
[1745108359028,7.10176834,140.81,140.73,30.97380881]
[1745108359328,13.55167656,140.82,140.73,111.27380881]
[1745108359525,6.4503,140.82,140.73,123.70896833]
[1745108359729,1.5997,140.84,140.75,20.0]
[1745108360033,1.5997,140.84,140.78,26.0]
[1745108360526,8.70004013,140.84,140.78,26.0]
[1745108360731,18.64964886,140.83,140.75,106.3]
[1745108360929,18.64964886,140.83,140.72,4.97441389]
[1745108361121,18.64964886,140.81,140.72,4.97441389]
[1745108361319,39.92964886,140.81,140.71,1e-08]
[1745108361518,18.64964886,140.78,140.72,2.5773327]
[1745108361723,18.64964886,140.78,140.72,28.5773327]
[1745108362231,18.64964886,140.78,140.72,2.5773327]
[1745108362417,18.64964886,140.78,140.71,1e-08]
[1745108362618,18.64964886,140.78,140.71,26.00000001]
[1745108362818,18.64964886,140.78,140.71,1e-08]
[1745108363133,7.10429099,140.76,140.71,1e-08]
[1745108363519,18.64964886,140.75,140.71,1e-08]
[1745108364621,7.10429099,140.76,140.71,1e-08]
[1745108366032,18.64964886,140.75,140.71,1e-08]
[1745108366944,24.86501846,140.76,140.71,1e-08]
[1745108367848,7.10429099,140.76,140.71,1e-08]
[1745108368824,17.41163985,140.78,140.71,1e-08]
[1745108370848,18.64964886,140.76,140.71,1e-08]
[1745108372547,18.64964886,140.72,140.71,1e-08]
[1745108374745,25.75595926,140.72,140.71,1e-08]
[1745108376247,7.1063104,140.72,140.71,1e-08]
[1745108376843,25.75595926,140.72,140.71,1e-08]
[1745108379147,18.64964886,140.69,140.65,0.063]
[1745108379353,18.64964886,140.67,140.65,0.063]
[1745108379652,24.76524886,140.66,140.65,0.063]
[1745108380247,18.64964886,140.67,140.65,0.063]
[1745108380649,7.10934167,140.66,140.65,0.063]
[1745108381930,7.10934167,140.66,140.65,1e-08]
[1745108382138,83.9465,140.65,140.57,0.063]
[1745108382456,18.64964886,140.64,140.57,0.063]
[1745108382754,18.64964886,140.6,140.57,0.063]
[1745108383749,7.11288142,140.59,140.57,0.063]
[1745108385355,18.64964886,140.6,140.57,0.063]
[1745108387360,7.11288142,140.59,140.57,0.063]
[1745108388354,7.11288142,140.59,140.53,30.0303238]
[1745108388541,7.11288142,140.59,140.51,0.063]
[1745108388542,33.50964886,140.58,140.51,0.063]
[1745108389447,18.64964886,140.56,140.51,0.063]
[1745108389952,7.11389343,140.57,140.51,0.063]
[1745108390259,14.86,140.58,140.51,0.063]
[1745108390436,7.11257426,140.6,140.51,26.063]
[1745108391150,7.11257426,140.6,140.51,25.563]
[1745108391666,7.11257426,140.6,140.52,6.40478223]
[1745108397854,18.64964886,140.59,140.49,80.3]
[1745108398053,18.64964886,140.59,140.5,26.0]
[1745108398653,18.64964886,140.57,140.49,86.70596735]
[1745108398857,7.11439954,140.56,140.48,32.46957947]
[1745108399043,18.64964886,140.55,140.45,81.8784]
[1745108399249,20.28024886,140.55,140.45,80.3]
[1745108399450,41.56024886,140.55,140.44,0.063]
[1745108399950,41.56024886,140.55,140.44,6.47133864]
[1745108400747,24.90394193,140.54,140.44,0.063]
[1745108401066,18.64964886,140.52,140.44,0.063]
[1745108401856,7.11693117,140.51,140.44,32.47143064]
[1745108403667,7.11693117,140.51,140.45,26.0]
[1745108404471,14.86,140.53,140.45,26.0]
[1745108405666,21.97609396,140.53,140.45,32.40793015]
[1745108407266,14.86,140.53,140.45,32.40793015]
[1745108408051,21.97592423,140.53,140.45,32.40793015]
[1745108408455,18.64964886,140.52,140.45,32.40793015]
[1745108408971,18.64964886,140.52,140.44,7.12027367]
[1745108409271,18.64964886,140.5,140.45,26.0]
[1745108410476,21.9759183,140.53,140.45,33.11983261]
[1745108410678,18.64964886,140.52,140.45,33.11983261]
[1745108411663,25.76612767,140.52,140.45,33.11983261]
[1745108412072,14.89,140.57,140.49,26.0]
[1745108412283,22.00411918,140.57,140.49,26.0]
[1745108412460,18.64964886,140.56,140.49,26.0]
[1745108413289,25.76416431,140.56,140.5,7.11743772]
[1745108414173,25.76416431,140.56,140.5,26.0]
[1745108414388,25.76416431,140.56,140.49,26.0]
[1745108414564,64.83016317,140.56,140.46,7.11946461]
[1745108414764,64.83016317,140.56,140.47,26.0]
[1745108414979,90.83016317,140.56,140.46,7.11946461]
[1745108415175,90.83016317,140.56,140.45,26.0]
[1745108415353,39.92964886,140.54,140.42,86.5759]
[1745108415557,18.64964886,140.48,140.42,0.063]
[1745108415753,1.5251,140.47,140.42,0.063]
[1745108416760,18.64964886,140.45,140.42,0.063]
[1745108417780,25.76991038,140.45,140.42,0.063]
[1745108419575,25.76991038,140.45,140.38,26.0]
[1745108419755,18.64964886,140.45,140.38,26.0]
[1745108420581,18.64964886,140.45,140.38,33.12352186]
[1745108421866,1.5251,140.47,140.38,33.12352186]
[1745108422067,18.64964886,140.46,140.38,33.12352186]
[1745108422476,18.64964886,140.46,140.38,50.93232653]
[1745108424177,108.463,140.51,140.44,26.0]
[1745108424178,1.5915,140.51,140.44,26.0]
[1745108424482,0.063,140.51,140.46,26.0]
[1745108425862,0.063,140.51,140.48,26.0]
[1745108427687,0.063,140.51,140.48,33.11795184]
[1745108430293,0.063,140.51,140.48,26.0]
[1745108431692,0.063,140.51,140.48,33.11835214]
[1745108434301,0.063,140.51,140.49,20.0]
[1745108434592,0.03,140.57,140.54,20.0]
[1745108434774,0.03,140.57,140.56,26.0]
[1745108435993,0.03,140.57,140.56,33.11439954]
[1745108437691,0.03,140.57,140.56,26.0]
[1745108437872,0.03,140.57,140.51,17.79123245]
[1745108438274,0.03,140.57,140.5,7.11743772]
[1745108438796,0.03,140.57,140.53,26.0]
[1745108439174,0.03,140.57,140.53,23.5]
[1745108439695,0.03,140.57,140.52,7.11620151]
[1745108440777,0.03,140.57,140.48,14.76]
[1745108440976,0.03,140.57,140.49,7.11775183]
[1745108441183,0.03,140.57,140.52,26.0]
[1745108441376,0.03,140.57,140.49,7.11775183]
[1745108441578,0.03,140.57,140.52,26.0]
[1745108445478,0.03,140.57,140.52,33.11622485]
[1745108448701,0.03,140.57,140.48,112.85602533]
[1745108448879,0.03,140.57,140.51,26.0]
[1745108449690,0.03,140.57,140.52,26.0]
[1745108449891,18.64964886,140.55,140.52,26.0]
[1745108450085,18.64964886,140.55,140.49,7.11756286]
[1745108450304,18.64964886,140.55,140.5,26.0]
[1745108451214,18.64964886,140.55,140.5,33.11733228]
[1745108451398,18.64964886,140.55,140.5,7.11733228]
[1745108451905,25.76459787,140.55,140.5,7.11733228]
[1745108452702,6.1901,140.56,140.5,7.11733228]
[1745108453407,6.1901,140.56,140.51,26.0]
[1745108454901,6.1901,140.56,140.52,7.1164247]
[1745108456607,27.4701,140.56,140.52,7.1164247]
[1745108456790,13.30455367,140.56,140.51,33.11677143]
[1745108457906,6.1901,140.56,140.51,33.11677143]
[1745108458307,13.30468028,140.56,140.51,33.11677143]
[1745108459115,13.30468028,140.56,140.51,26.0]
[1745108459299,18.64964886,140.55,140.51,26.0]
[1745108459884,18.64964886,140.55,140.49,33.11758145]
[1745108461001,27.39400015,140.55,140.47,7.11895778]
[1745108461207,14.66,140.54,140.46,0.03]
[1745108461409,14.66,140.54,140.47,26.0]
[1745108462114,25.76556716,140.53,140.47,33.11852749]
[1745108462607,14.66,140.54,140.47,33.11852749]
[1745108462911,34.74412681,140.55,140.47,7.11852749]
[1745108463516,8.74412681,140.55,140.47,7.11852749]
[1745108464617,8.74412681,140.55,140.46,24.94761938]
[1745108466498,8.74412681,140.55,140.5,7.11743772]
[1745108467014,21.28,140.54,140.5,7.11743772]
[1745108467217,8.74412681,140.55,140.49,33.1178006]
[1745108468107,18.64964886,140.54,140.49,33.1178006]
[1745108468922,25.76519115,140.54,140.49,33.1178006]
[1745108469518,25.76519115,140.54,140.48,7.11827335]
[1745108470324,25.76519115,140.54,140.46,0.03]
[1745108470614,129.44519115,140.54,140.46,0.03]
[1745108470797,26.0,140.53,140.46,0.03]
[1745108470994,18.64964886,140.51,140.46,0.03]
[1745108471721,18.64964886,140.49,140.46,0.03]
[1745108472121,18.64964886,140.47,140.46,0.03]
[1745108472512,25.76860664,140.47,140.46,0.03]
[1745108473526,40.42860664,140.47,140.46,0.03]
[1745108478218,33.30964886,140.47,140.46,0.03]
[1745108478923,14.66,140.47,140.46,0.03]
[1745108480426,1.5322,140.48,140.46,0.03]
[1745108480929,8.65066623,140.48,140.46,0.03]
[1745108481117,1.5322,140.48,140.46,0.03]
[1745108481322,6.4643,140.5,140.46,0.03]
[1745108481911,13.58188367,140.5,140.46,0.03]
[1745108482117,6.4643,140.5,140.46,0.03]
[1745108482317,13.58185014,140.5,140.46,0.03]
[1745108482510,7.11845102,140.48,140.46,0.03]
[1745108482705,18.64964886,140.47,140.46,0.03]
[1745108483623,33.16964886,140.47,140.46,0.03]
[1745108484214,162.91964886,140.47,140.46,0.03]
[1745108484725,170.03860664,140.47,140.46,0.03]
[1745108484928,122.68860664,140.47,140.46,0.03]
[1745108486509,144.03860664,140.47,140.46,0.03]
[1745108486710,61.63860664,140.47,140.46,0.03]
[1745108487328,25.76860664,140.47,140.46,0.03]
[1745108487525,66.28860664,140.47,140.46,0.03]
[1745108488515,40.28860664,140.47,140.46,0.03]
[1745108489520,33.16964886,140.49,140.46,0.03]
[1745108490728,40.2876702,140.49,140.46,0.03]
[1745108497309,7.11848218,140.48,140.46,0.03]
[1745108499525,18.64964886,140.47,140.46,0.03]
[1745108502244,25.76860664,140.47,140.46,0.03]
[1745108502537,7.11895778,140.47,140.46,0.03]
[1745108503038,18.64964886,140.47,140.46,0.03]
[1745108504239,25.76860664,140.47,140.46,0.03]
[1745108504442,7.11895778,140.47,140.46,0.03]
[1745108506651,18.64964886,140.47,140.46,0.03]
[1745108508142,7.11895778,140.47,140.46,0.03]
[1745108509341,18.64964886,140.47,140.46,0.03]
[1745108512745,14.52,140.49,140.46,0.03]
[1745108512947,96.92,140.51,140.46,0.03]
[1745108513130,14.52,140.51,140.46,0.03]
[1745108513641,21.63720424,140.51,140.46,0.03]
[1745108513842,7.11439954,140.56,140.49,26.0]
[1745108514039,7.14409982,140.57,140.49,26.0]
[1745108514342,18.64964886,140.56,140.49,26.0]
[1745108514945,18.64964886,140.56,140.5,7.11743772]
[1745108516227,7.11452703,140.56,140.5,7.11743772]
[1745108516546,25.76417589,140.56,140.49,26.0]
[1745108517044,43.55017475,140.56,140.49,26.0]
[1745108517852,39.99964886,140.55,140.47,7.11873557]
[1745108518059,18.64964886,140.53,140.46,7.14927104]
[1745108518650,18.64964886,140.51,140.46,0.03]
[1745108519167,18.64964886,140.49,140.46,0.03]
[1745108520442,54.51964886,140.49,140.46,0.03]
[1745108521151,18.64964886,140.47,140.46,0.03]
[1745108521352,26.22804886,140.47,140.46,0.03]
[1745108521555,18.64964886,140.48,140.46,0.03]
[1745108521743,7.11756186,140.5,140.46,0.03]
[1745108523053,14.52,140.51,140.46,0.03]
[1745108523253,18.64964886,140.53,140.46,0.03]
[1745108524257,7.11657483,140.52,140.46,0.03]
[1745108525353,18.64964886,140.51,140.46,0.03]
[1745108527459,7.11743772,140.5,140.46,0.03]
[1745108528155,28.46743772,140.5,140.46,0.03]
[1745108528358,7.11743772,140.5,140.46,0.03]
[1745108533261,7.11708921,140.51,140.46,0.03]
[1745108533563,7.11660896,140.52,140.46,0.03]
[1745108537678,14.69386595,140.54,140.46,26.03]
[1745108537966,7.11546595,140.54,140.46,26.03]
[1745108540858,0.03,140.57,140.49,20.0]
[1745108542874,0.03,140.57,140.53,7.1159183]
[1745108548666,0.03,140.57,140.5,7.11743772]
[1745108549372,0.03,140.57,140.5,33.11743772]
[1745108549775,0.03,140.57,140.53,26.0]
[1745108549966,0.03,140.57,140.54,26.0]
[1745108552582,0.03,140.57,140.55,7.11490572]
[1745108553778,0.03,140.57,140.54,43.78814038]
[1745108553779,0.03,140.57,140.54,17.78814038]
[1745108554882,0.03,140.57,140.54,19.40274038]
[1745108555084,0.03,140.57,140.54,39.40274038]
[1745108555463,0.03,140.57,140.54,43.03786134]
[1745108556698,0.063,140.68,140.58,20.0]
[1745108556880,0.063,140.68,140.61,7.11186971]
[1745108557467,0.063,140.68,140.63,20.0]
[1745108557675,0.063,140.68,140.63,100.29999999]
[1745108558286,1e-08,140.68,140.67,38.64964886]
[1745108558475,0.063,140.7,140.67,118.94964885]
[1745108559168,0.063,140.7,140.68,7.10833096]
[1745108559369,0.063,140.7,140.69,26.0]
[1745108560287,0.063,140.7,140.69,33.10782571]
[1745108560765,0.063,140.7,140.66,7.10934167]
[1745108561181,0.063,140.7,140.69,26.0]
[1745108562069,0.063,140.7,140.69,33.10782571]
[1745108563686,0.063,140.7,140.69,26.0]
[1745108564394,0.063,140.7,140.67,7.10879496]
[1745108568575,0.063,140.7,140.69,26.0]
[1745108570195,0.063,140.7,140.66,26.0]
[1745108571476,0.063,140.7,140.68,26.0]
[1745108571678,18.71264886,140.7,140.62,16.1146]
[1745108571896,18.71264886,140.7,140.63,7.11085828]
[1745108572098,18.71264886,140.7,140.66,26.0]